bitfinex-derivatives/quotes_BTCF0:USTF0_20250313
["timestamp","ask_amount","ask_price","bid_price","bid_amount"]
[1741824761377,0.0846352,83656.0,83653.0,0.0597808]
[1741824761683,0.27304716,83661.0,83660.0,0.1195529]
[1741824761983,0.21433091,83672.0,83667.0,0.1195429]
[1741824762172,0.21433091,83672.0,83671.0,0.1195372]
[1741824762378,0.24902434,83682.0,83671.0,0.41884]
[1741824762573,0.24902434,83682.0,83681.0,0.1195229]
[1741824762775,0.24902434,83682.0,83681.0,0.4684029]
[1741824763176,0.24902434,83682.0,83681.0,0.2384029]
[1741824763676,0.25202434,83682.0,83681.0,0.2384029]
[1741824764875,0.29942434,83682.0,83681.0,0.2384029]
[1741824765086,0.30442434,83682.0,83681.0,0.2394029]
[1741824765482,0.30442434,83682.0,83681.0,0.5294029]
[1741824765676,0.0514,83682.0,83681.0,0.5284029]
[1741824766477,0.0484,83682.0,83681.0,0.5294029]
[1741824766879,0.0001793,83690.0,83689.0,0.1195115]
[1741824767083,0.0001793,83690.0,83689.0,0.3495115]
[1741824767780,0.0001793,83690.0,83689.0,0.4495115]
[1741824767981,0.0001793,83690.0,83689.0,0.46443588]
[1741824768181,0.0001793,83690.0,83689.0,0.46543588]
[1741824768376,0.0001793,83690.0,83689.0,0.4505115]
[1741824768377,0.0031793,83690.0,83689.0,0.4505115]
[1741824768776,0.0467,83696.0,83693.0,0.1195058]
[1741824768988,0.10711301,83694.0,83693.0,0.4783058]
[1741824769290,0.10711301,83694.0,83693.0,0.2383058]
[1741824769780,0.1675041,83695.0,83694.0,0.1195043]
[1741824769986,0.1675041,83695.0,83694.0,0.2187043]
[1741824770187,0.0467,83696.0,83695.0,0.1195029]
[1741824770487,0.0467,83696.0,83695.0,0.4390029]
[1741824772183,0.0477,83696.0,83695.0,0.4400029]
[1741824772777,0.0477,83696.0,83695.0,0.4410029]
[1741824775580,0.0001793,83702.0,83701.0,0.1194943]
[1741824775781,0.0942793,83702.0,83701.0,0.3294943]
[1741824775983,0.0942793,83702.0,83701.0,0.2188943]
[1741824776184,0.0942793,83702.0,83701.0,0.4488943]
[1741824776381,0.0942793,83702.0,83701.0,0.2188943]
[1741824776786,0.2137722,83702.0,83701.0,0.2198943]
[1741824777888,0.2147722,83702.0,83701.0,0.1723943]
[1741824778189,0.2147722,83702.0,83701.0,0.1214943]
[1741824778395,0.2147722,83702.0,83701.0,0.002]
[1741824778891,0.2137722,83702.0,83701.0,0.001]
[1741824779090,0.1195015,83696.0,83693.0,0.2387642]
[1741824779289,0.1195043,83694.0,83693.0,0.1192593]
[1741824779479,0.1195043,83694.0,83693.0,0.2387651]
[1741824779679,0.0959,83694.0,83693.0,0.2387651]
[1741824780003,0.0959,83694.0,83693.0,0.4487651]
[1741824780183,0.2154043,83694.0,83693.0,0.3356651]
[1741824780383,0.2154043,83694.0,83693.0,0.2861651]
[1741824781294,0.2154043,83694.0,83693.0,0.1202593]
[1741824781683,0.2154043,83694.0,83693.0,0.2397651]
[1741824781994,0.0959,83694.0,83693.0,0.44894826]
[1741824782189,0.0959,83694.0,83693.0,0.54444826]
[1741824782786,0.2154043,83694.0,83693.0,0.54444826]
[1741824783190,0.2154043,83694.0,83693.0,0.34444826]
[1741824783692,0.1194885,83706.0,83693.0,0.43494246]
[1741824783904,0.0476,83697.0,83696.0,0.1195015]
[1741824784192,0.0476,83697.0,83696.0,0.4536015]
[1741824784598,0.0476,83697.0,83696.0,0.5236015]
[1741824784787,0.0146575,83725.0,83696.0,0.5341]
[1741824784993,0.0967,83700.0,83699.0,0.1194972]
[1741824785189,0.0967,83700.0,83699.0,0.3294972]
[1741824785790,0.0482,83712.0,83711.0,0.1194801]
[1741824785991,0.1676786,83712.0,83711.0,0.1194801]
[1741824786195,0.1194815,83710.0,83709.0,0.1196]
[1741824786401,0.1792493,83699.0,83698.0,0.1194977]
[1741824786601,0.1792493,83699.0,83698.0,0.2692977]
[1741824787097,0.1792493,83699.0,83698.0,0.1498]
[1741824787399,0.1792493,83699.0,83698.0,0.1198]
[1741824787600,0.1792493,83699.0,83698.0,0.2392986]
[1741824787601,0.2789493,83699.0,83698.0,0.2392986]
[1741824787799,0.2789493,83699.0,83698.0,0.2402986]
[1741824787994,0.2789493,83699.0,83698.0,0.1208]
[1741824788399,0.2789493,83699.0,83698.0,0.001]
[1741824788694,0.29383573,83699.0,83698.0,0.001]
[1741824791001,0.1195043,83694.0,83693.0,0.0001793]
[1741824792099,0.2199043,83694.0,83693.0,0.1196851]
[1741824792303,0.2199043,83694.0,83693.0,0.0001793]
[1741824792593,0.2199043,83694.0,83693.0,0.0011793]
[1741824794399,0.1004,83694.0,83665.0,1.26188]
[1741824794599,0.11953,83676.0,83675.0,0.1691307]
[1741824794896,0.11953,83676.0,83675.0,0.1195307]
[1741824795096,0.1425,83677.0,83673.0,0.0492]
[1741824795302,0.2143315,83675.0,83674.0,0.17052425]
[1741824795500,0.2143315,83675.0,83674.0,0.17950461]
[1741824795699,0.2143315,83675.0,83674.0,0.05997291]
[1741824795994,0.2143315,83675.0,83674.0,0.00879255]
[1741824796198,0.22884494,83675.0,83674.0,0.00879255]
[1741824797098,0.22884494,83675.0,83674.0,0.01479255]
[1741824798007,0.22884494,83675.0,83674.0,0.00979255]
[1741824798392,0.22884494,83675.0,83666.0,0.00017918]
[1741824798393,0.1195429,83667.0,83666.0,0.00017918]
[1741824798900,0.26984,83667.0,83661.0,0.28275129]
[1741824799098,0.11955,83662.0,83661.0,0.28275129]
[1741824799603,0.26955,83662.0,83661.0,0.28275129]
[1741824801201,0.151,83662.0,83653.0,0.00017929]
[1741824801393,0.1195615,83654.0,83653.0,0.00017929]
[1741824801593,0.13428488,83654.0,83653.0,0.00017929]
[1741824801903,0.14557596,83654.0,83653.0,0.00017929]
[1741824802093,0.24107596,83654.0,83653.0,0.00017929]
[1741824802294,0.24107596,83654.0,83653.0,0.00217929]
[1741824802701,0.23307596,83654.0,83653.0,0.00217929]
[1741824803606,0.24007596,83654.0,83653.0,0.00217929]
[1741824804501,0.24107596,83654.0,83653.0,0.00117929]
[1741824807199,0.12951446,83654.0,83647.0,0.0511]
[1741824807405,0.1195715,83647.0,83646.0,0.0498]
[1741824807800,0.1195715,83647.0,83646.0,0.1693729]
[1741824808199,0.2158715,83647.0,83646.0,0.1693729]
[1741824808601,0.2198715,83647.0,83646.0,0.0498]
[1741824810316,0.2198715,83647.0,83582.0,13.2183585]
[1741824810317,0.0597874,83645.0,83622.0,0.001]
[1741824810606,0.1195915,83633.0,83632.0,0.1666928]
[1741824811201,0.1197124,83633.0,83632.0,0.1666928]
[1741824811709,0.1197124,83633.0,83632.0,0.1676928]
[1741824812911,0.1197124,83633.0,83632.0,0.0481]
[1741824813601,0.1691124,83633.0,83632.0,0.0481]
[1741824814003,0.1197124,83633.0,83632.0,0.0481]
[1741824814605,0.1691124,83633.0,83632.0,0.001]
[1741824814906,0.1691124,83633.0,83632.0,0.0483]
[1741824815103,0.1689915,83633.0,83632.0,0.001]
[1741824815809,0.18306917,83633.0,83632.0,0.001]
[1741824816013,0.1689915,83633.0,83632.0,0.001]
[1741824816411,0.1195915,83633.0,83632.0,0.1708929]
[1741824816614,0.11970907,83633.0,83632.0,0.1708929]
[1741824817914,0.11970907,83633.0,83632.0,0.0513]
[1741824818401,0.11970907,83633.0,83632.0,0.1708929]
[1741824819111,0.11970907,83633.0,83632.0,0.0513]
[1741824820315,0.11970907,83633.0,83632.0,0.1708929]
[1741824821115,0.11970907,83633.0,83632.0,0.0513]
[1741824823126,0.17010907,83633.0,83632.0,0.0513]
[1741824829021,0.1699915,83633.0,83632.0,0.001]
[1741824836227,0.17009172,83633.0,83632.0,0.1724929]
[1741824836432,0.11969172,83633.0,83632.0,0.1724929]
[1741824836632,0.16999172,83633.0,83632.0,0.1724929]
[1741824836834,0.16999172,83633.0,83632.0,0.0529]
[1741824837535,0.16999172,83633.0,83632.0,0.1724929]
[1741824838443,0.16999172,83633.0,83632.0,0.0529]
[1741824839435,0.31327906,83633.0,83632.0,0.0529]
[1741824840441,0.26287884,83633.0,83632.0,0.0529]
[1741824840938,0.26298887,83633.0,83632.0,0.0529]
[1741824841246,0.36307884,83633.0,83632.0,0.0529]
[1741824843141,0.2197915,83633.0,83632.0,0.0529]
[1741824844041,0.1197077,83633.0,83632.0,0.1724929]
[1741824844740,0.1197077,83633.0,83632.0,0.18660869]
[1741824844932,0.1197077,83633.0,83632.0,0.28590869]
[1741824844933,0.0001162,83633.0,83632.0,0.28590869]
[1741824845242,0.1197077,83633.0,83632.0,0.51590869]
[1741824845545,0.1197077,83633.0,83632.0,0.23590869]
[1741824846438,0.1197077,83633.0,83632.0,0.11631579]
[1741824847047,0.1197077,83633.0,83632.0,0.23590869]
[1741824847347,0.1707077,83633.0,83632.0,0.11631579]
[1741824847643,0.1707077,83633.0,83632.0,0.1022]
[1741824848641,0.1705915,83633.0,83632.0,0.0503]
[1741824850147,0.1705915,83633.0,83632.0,0.1698929]
[1741824851048,0.1707124,83633.0,83632.0,0.1698929]
[1741824851551,0.1707124,83633.0,83632.0,0.0503]
[1741824854246,0.1197124,83633.0,83632.0,0.1698929]
[1741824854447,0.1197124,83633.0,83632.0,0.0503]
[1741824855140,0.2185124,83633.0,83632.0,0.0503]
[1741824857050,0.2185124,83633.0,83632.0,0.1698929]
[1741824859346,0.2185124,83633.0,83632.0,0.0503]
[1741824861750,0.1197124,83633.0,83632.0,0.1698929]
[1741824862355,0.1197124,83633.0,83632.0,0.2171929]
[1741824862652,0.0001209,83633.0,83632.0,0.2671929]
[1741824862952,0.1197124,83633.0,83632.0,0.2171929]
[1741824865351,0.1197124,83633.0,83632.0,0.0976]
[1741824865651,0.17002364,83633.0,83632.0,0.0976]
[1741824865857,0.11962364,83633.0,83632.0,0.2171929]
[1741824866250,0.17002364,83633.0,83632.0,0.2171929]
[1741824868249,0.17002364,83633.0,83632.0,0.0976]
[1741824868651,0.17002364,83633.0,83632.0,0.2171929]
[1741824869047,3.214e-05,83633.0,83632.0,0.2171929]
[1741824870257,0.11962364,83633.0,83632.0,0.2171929]
[1741824870850,0.11962364,83633.0,83632.0,0.2271929]
[1741824872959,0.16782364,83633.0,83632.0,0.2271929]
[1741824874160,0.16782364,83633.0,83632.0,0.1076]
[1741824874366,0.16782364,83633.0,83632.0,0.2171929]
[1741824877864,3.214e-05,83633.0,83632.0,0.4371929]
[1741824879262,3.214e-05,83633.0,83632.0,0.4571929]
[1741824879865,0.00017929,83641.0,83632.0,0.3376]
[1741824880069,0.00017929,83641.0,83640.0,0.1195815]
[1741824880265,0.2835018,83653.0,83652.0,0.1195643]
[1741824880466,0.3325018,83653.0,83652.0,0.1195643]
[1741824881065,0.049,83653.0,83641.0,0.11856]
[1741824881270,0.1195772,83643.0,83642.0,0.170778]
[1741824882059,0.2206772,83643.0,83642.0,0.1707786]
[1741824882258,0.2206772,83643.0,83642.0,0.0512]
[1741824882465,0.2236772,83643.0,83642.0,0.0512]
[1741824883476,0.2236772,83643.0,83642.0,0.1707786]
[1741824883677,0.2256772,83643.0,83642.0,0.1707786]
[1741824884864,0.2256772,83643.0,83642.0,0.2196786]
[1741824887176,0.2256772,83643.0,83642.0,0.1001]
[1741824896375,0.2256772,83643.0,83642.0,0.2196786]
[1741824896583,0.2256772,83643.0,83642.0,0.1001]
[1741824897985,0.2256772,83643.0,83642.0,0.2196786]
[1741824898484,0.1766772,83643.0,83642.0,0.2196786]
[1741824899391,0.14826464,83643.0,83642.0,0.2196786]
[1741824899581,0.14826464,83643.0,83642.0,0.4896786]
[1741824899983,0.00017929,83655.0,83642.0,0.3901]
[1741824900192,0.11973929,83655.0,83654.0,0.1195615]
[1741824900392,0.00017929,83655.0,83654.0,0.1195615]
[1741824900595,0.0491,83662.0,83654.0,0.2396]
[1741824900995,0.1686527,83662.0,83661.0,0.1195515]
[1741824901303,0.1686527,83662.0,83661.0,0.25210106]
[1741824901805,0.2191527,83662.0,83661.0,0.2380715]
[1741824902102,0.2221527,83662.0,83661.0,0.35219833]
[1741824902306,0.2221527,83662.0,83661.0,0.17022]
[1741824902307,0.2291527,83662.0,83661.0,0.17022]
[1741824902491,0.2782527,83662.0,83661.0,0.17022]
[1741824903593,0.2782527,83662.0,83661.0,0.001]
[1741824904402,0.2291527,83662.0,83661.0,0.1205515]
[1741824904602,0.2271527,83662.0,83661.0,0.002]
[1741824905104,0.2271527,83662.0,83661.0,0.0554]
[1741824905301,0.2271527,83662.0,83661.0,0.2252515]
[1741824905503,0.0571,83662.0,83661.0,0.2252515]
[1741824905805,0.008,83662.0,83661.0,0.4552515]
[1741824906200,0.12755,83662.0,83661.0,0.4552515]
[1741824906401,0.12755,83662.0,83661.0,0.5052515]
[1741824906902,0.008,83662.0,83661.0,0.5052515]
[1741824907104,0.008,83662.0,83661.0,0.4852515]
[1741824907306,0.12755,83662.0,83661.0,0.2252515]
[1741824908203,0.12755,83662.0,83661.0,0.1057]
[1741824908902,0.23155,83662.0,83661.0,0.1057]
[1741824911702,0.23155,83662.0,83661.0,0.2252515]
[1741824912008,0.008,83662.0,83661.0,0.2252515]
[1741824912210,0.12755,83662.0,83661.0,0.2252515]
[1741824913704,0.12755,83662.0,83661.0,0.1057]
[1741824914107,0.12755,83662.0,83661.0,0.2252515]
[1741824914603,0.17925,83662.0,83661.0,0.2252515]
[1741824917199,0.19263747,83662.0,83661.0,0.2252515]
[1741824917405,0.17925,83662.0,83661.0,0.2252515]
[1741824919404,0.19254155,83662.0,83661.0,0.4652515]
[1741824919600,0.008,83662.0,83661.0,0.4852515]
[1741824920211,0.008,83662.0,83661.0,0.49845372]
[1741824920816,0.12755,83662.0,83661.0,0.23845372]
[1741824921505,0.12755,83662.0,83661.0,0.47845372]
[1741824921909,0.12755,83662.0,83661.0,0.23845372]
[1741824922108,0.12755,83662.0,83661.0,0.47845372]
[1741824922419,0.12755,83662.0,83661.0,0.23845372]
[1741824923708,0.12755,83662.0,83661.0,0.35697372]
[1741824924516,0.008,83662.0,83661.0,0.59697372]
[1741824924719,0.12755,83662.0,83661.0,0.59697372]
[1741824924915,0.12755,83662.0,83661.0,0.35697372]
[1741824926122,0.008,83662.0,83661.0,0.35697372]
[1741824926311,0.12755,83662.0,83661.0,0.35697372]
[1741824926513,0.17975,83662.0,83661.0,0.35697372]
[1741824929414,0.0602,83662.0,83661.0,0.35697372]
[1741824930022,0.0602,83662.0,83661.0,0.55697372]
[1741824930918,0.10725911,83669.0,83661.0,0.45742222]
[1741824931117,0.10725911,83669.0,83668.0,0.1195415]
[1741824931317,0.22679911,83669.0,83668.0,0.1195415]
[1741824931622,0.0512,83669.0,83668.0,0.1195415]
[1741824932018,0.0512,83669.0,83668.0,0.1718415]
[1741824932322,0.1006,83669.0,83668.0,0.2216415]
[1741824932518,0.22014,83669.0,83668.0,0.2216415]
[1741824933122,0.22314,83669.0,83668.0,0.2226415]
[1741824934225,0.22314,83669.0,83668.0,0.1031]
[1741824934522,0.27454,83669.0,83668.0,0.22158]
[1741824935112,0.27454,83669.0,83668.0,0.22258]
[1741824935312,0.28796458,83669.0,83668.0,0.22258]
[1741824935525,0.28796458,83669.0,83668.0,0.17278]
[1741824935719,0.28796458,83669.0,83668.0,0.2923215]
[1741824935915,0.28796458,83669.0,83668.0,0.17278]
[1741824936619,0.28796458,83669.0,83668.0,0.002]
[1741824942320,0.27454,83669.0,83668.0,0.002]
[1741824942523,0.27454,83669.0,83668.0,0.1215415]
[1741824942924,0.33265363,83669.0,83668.0,0.1215415]
[1741824943227,0.33265363,83669.0,83668.0,0.1735415]
[1741824943416,0.33265363,83669.0,83668.0,0.002]
[1741824943615,0.33265363,83669.0,83668.0,0.1215415]
[1741824944228,0.33265363,83669.0,83668.0,0.002]
[1741824944429,0.33265363,83669.0,83668.0,0.0515]
[1741824945031,0.33265363,83669.0,83668.0,0.1710415]
[1741824945925,0.33265363,83669.0,83668.0,0.0515]
[1741824946122,0.33265363,83669.0,83668.0,0.1710415]
[1741824946627,0.27454,83669.0,83668.0,0.2217415]
[1741824947032,0.22314,83669.0,83668.0,0.2217415]
[1741824947233,0.22314,83669.0,83668.0,0.2732415]
[1741824947733,0.22314,83669.0,83668.0,0.31532675]
[1741824948128,0.1036,83669.0,83668.0,0.31532675]
[1741824948323,0.0524,83669.0,83668.0,0.31532675]
[1741824950032,0.23697132,83669.0,83668.0,0.26382675]
[1741824950231,0.28467132,83669.0,83668.0,0.26382675]
[1741824950822,0.28467132,83669.0,83668.0,0.14428525]
[1741824951022,0.28467132,83669.0,83668.0,0.09358525]
[1741824951628,0.28467132,83669.0,83668.0,0.21312675]
[1741824952535,0.1517,83669.0,83668.0,0.21312675]
[1741824952733,0.104,83669.0,83668.0,0.26092675]
[1741824953032,0.0524,83669.0,83668.0,0.26092675]
[1741824953425,0.22164,83669.0,83668.0,0.26092675]
[1741824953833,0.22164,83669.0,83668.0,0.14138525]
[1741824954034,0.22164,83669.0,83668.0,0.26092675]
[1741824955534,0.22164,83669.0,83668.0,0.09358525]
[1741824956030,0.22164,83669.0,83668.0,0.04408525]
[1741824956227,0.22164,83669.0,83668.0,0.16362675]
[1741824957739,0.22164,83669.0,83668.0,0.21232675]
[1741824959133,0.22164,83669.0,83668.0,0.09278525]
[1741824962151,0.22164,83669.0,83668.0,0.21232675]
[1741824962546,0.22164,83669.0,83668.0,0.14488525]
[1741824962732,0.22164,83669.0,83668.0,0.26442675]
[1741824963440,0.0524,83669.0,83668.0,0.26442675]
[1741824963752,0.17194,83669.0,83668.0,0.38290675]
[1741824964043,0.21984,83669.0,83668.0,0.38290675]
[1741824964846,0.0524,83669.0,83668.0,0.38290675]
[1741824965241,0.17194,83669.0,83668.0,0.38290675]
[1741824966049,0.22374,83669.0,83668.0,0.38290675]
[1741824967138,0.22374,83669.0,83668.0,0.04408525]
[1741824967348,0.22374,83669.0,83668.0,0.16362675]
[1741824967544,0.22374,83669.0,83668.0,0.21612675]
[1741824968853,0.22374,83669.0,83668.0,0.26652675]
[1741824969852,0.28185299,83669.0,83668.0,0.26652675]
[1741824970354,0.18065299,83669.0,83668.0,0.26652675]
[1741824970544,0.27955299,83669.0,83668.0,0.26652675]
[1741824971054,0.27955299,83669.0,83668.0,0.14698525]
[1741824971456,0.27955299,83669.0,83668.0,0.26652675]
[1741824973254,0.22144,83669.0,83668.0,0.26652675]
[1741824974152,0.17214,83669.0,83668.0,0.26652675]
[1741824974956,0.22104,83669.0,83668.0,0.26652675]
[1741824977958,0.22104,83669.0,83668.0,0.14698525]
[1741824978872,0.22104,83669.0,83668.0,0.26546525]
[1741824979564,0.22104,83669.0,83668.0,0.16256525]
[1741824980162,0.22104,83669.0,83668.0,0.04408525]
[1741824981768,0.2329902,83669.0,83668.0,0.04408525]
[1741824982169,0.51736096,83669.0,83668.0,0.01414455]
[1741824982351,0.51736096,83669.0,83668.0,5e-08]
[1741824983462,0.50598697,83669.0,83668.0,5e-08]
[1741824984666,0.1195415,83668.0,83667.0,0.00676147]
[1741824984863,0.1195529,83660.0,83659.0,0.04279588]
[1741824985165,0.1195529,83660.0,83642.0,0.35696791]
[1741824985166,0.1195772,83643.0,83642.0,0.35696791]
[1741824985358,0.1195772,83643.0,83642.0,0.35600791]
[1741824985969,0.1195843,83638.0,83637.0,0.00092]
[1741824986170,0.1195886,83635.0,83634.0,0.04897929]
[1741824986378,0.1185886,83635.0,83634.0,0.04897929]
[1741824987271,0.1185886,83635.0,83634.0,0.04997929]
[1741824987662,0.1185886,83635.0,83634.0,0.00117929]
[1741824988260,0.13189916,83635.0,83634.0,0.00117929]
[1741824988862,0.0597962,83633.0,83588.0,0.2163]
[1741824989063,0.119623,83611.0,83610.0,0.54891107]
[1741824989269,0.13086728,83611.0,83610.0,0.54891107]
[1741824989772,0.14229034,83611.0,83610.0,0.54891107]
[1741824989969,0.14229034,83611.0,83610.0,0.0505]
[1741824990271,0.1196373,83601.0,83590.0,0.12128]
[1741824990570,0.12888158,83601.0,83594.0,0.0511]
[1741824990777,0.14189509,83601.0,83594.0,0.0511]
[1741824991275,0.15331815,83601.0,83599.0,0.1196389]
[1741824991474,0.14030464,83601.0,83600.0,0.2196387]
[1741824991673,0.14030464,83601.0,83600.0,0.3257387]
[1741824991968,0.12906036,83601.0,83600.0,0.3287387]
[1741824992860,0.1176373,83601.0,83600.0,0.3287387]
[1741824993770,0.1176373,83601.0,83600.0,0.2091]
[1741824994269,0.12864322,83601.0,83600.0,0.1565]
[1741824994665,0.24185475,83601.0,83600.0,0.1565]
[1741824995271,0.24185475,83601.0,83594.0,0.0526]
[1741824995272,0.1196459,83595.0,83594.0,0.0526]
[1741824995489,0.13061647,83595.0,83594.0,0.0526]
[1741824996272,0.12761647,83595.0,83594.0,0.0526]
[1741824996475,0.1279716,83595.0,83594.0,0.0526]
[1741824996867,0.1778716,83595.0,83594.0,0.0526]
[1741824997066,0.0113257,83595.0,83594.0,0.1722473]
[1741824997468,0.1309716,83595.0,83594.0,0.2932073]
[1741824997873,0.1196459,83595.0,83594.0,0.2932073]
[1741824998076,0.1216459,83595.0,83594.0,0.2982073]
[1741824998462,0.1216459,83595.0,83594.0,0.3476073]
[1741824998677,0.1216459,83595.0,83594.0,0.22796]
[1741824998978,0.1236459,83595.0,83594.0,0.102]
[1741824999177,0.1236459,83595.0,83594.0,0.2216473]
[1741824999678,0.1236459,83595.0,83594.0,0.102]
[1741825000177,0.14586499,83595.0,83594.0,0.102]
[1741825000380,0.24676499,83595.0,83594.0,0.102]
[1741825000883,0.12711909,83595.0,83576.0,0.00015222]
[1741825001068,0.01091128,83594.0,83585.0,0.0498]
[1741825001383,0.1196573,83587.0,83586.0,0.0491]
[1741825001585,0.1196573,83587.0,83586.0,0.1687587]
[1741825001778,0.1196573,83587.0,83586.0,0.1196587]
[1741825001973,0.1196716,83577.0,83576.0,0.12482532]
[1741825002775,0.1176716,83577.0,83576.0,0.12482532]
[1741825003078,0.1176716,83577.0,83576.0,0.23482532]
[1741825003283,0.00064,83604.0,83576.0,0.38647222]
[1741825003583,0.14824319,83600.0,83577.0,0.2163]
[1741825003785,0.0598273,83589.0,83586.0,0.001]
[1741825003985,0.1196573,83587.0,83586.0,0.001]
[1741825004585,0.1705573,83587.0,83586.0,0.001]
[1741825005281,0.1705573,83587.0,83578.0,0.1026]
[1741825005282,0.1196688,83579.0,83578.0,0.1026]
[1741825006679,0.1206688,83579.0,83576.0,0.004]
[1741825006879,0.1206688,83579.0,83552.0,0.2163]
[1741825006880,0.119696,83560.0,83559.0,0.12144]
[1741825007186,0.119696,83560.0,83559.0,0.2411374]
[1741825007380,0.119696,83560.0,83559.0,0.1196974]
[1741825007873,0.179543,83562.0,83561.0,0.1196945]
[1741825008274,0.119696,83560.0,83559.0,0.0995]
[1741825008977,0.120696,83560.0,83559.0,0.1055]
[1741825009683,0.120696,83560.0,83559.0,0.0208095]
[1741825009879,0.120696,83560.0,83545.0,0.0598575]
[1741825009880,0.001,83560.0,83545.0,0.0598575]
[1741825010075,0.1197203,83546.0,83545.0,0.0598575]
[1741825010278,0.1147203,83546.0,83545.0,0.0598575]
[1741825010490,0.1197189,83544.0,83543.0,0.0598596]
[1741825010984,0.1795693,83549.0,83548.0,0.1197132]
[1741825011283,0.1795694,83552.0,83551.0,0.1197038]
[1741825011786,0.1705694,83552.0,83551.0,0.1197038]
[1741825013589,0.0598528,83554.0,83551.0,0.2186038]
[1741825013784,0.0598528,83554.0,83553.0,0.119706]
[1741825014182,0.002,83552.0,83551.0,0.0989]
[1741825014481,0.002,83552.0,83551.0,0.049]
[1741825014482,0.1247074,83552.0,83551.0,0.049]
[1741825014689,0.1227074,83552.0,83551.0,0.049]
[1741825014883,0.2220074,83552.0,83551.0,0.049]
[1741825015084,0.2190074,83552.0,83551.0,0.049]
[1741825015884,0.2230074,83552.0,83551.0,0.049]
[1741825016478,0.1750074,83552.0,83551.0,0.1687089]
[1741825016677,0.1750074,83552.0,83551.0,0.049]
[1741825017182,0.1760074,83552.0,83551.0,0.049]
[1741825017588,0.1730074,83552.0,83551.0,0.049]
[1741825017790,0.1750074,83552.0,83551.0,0.049]
[1741825018288,0.1720074,83552.0,83551.0,0.049]
[1741825018490,0.1760074,83552.0,83551.0,0.049]
[1741825018680,0.1760074,83552.0,83551.0,0.0985]
[1741825019190,0.2279074,83552.0,83551.0,0.0985]
[1741825019385,0.2279074,83552.0,83527.0,0.119742]
[1741825019386,0.0598638,83538.0,83527.0,0.119742]
[1741825019588,0.1197347,83533.0,83532.0,0.0496]
[1741825019787,0.1197504,83522.0,83521.0,0.00179583]
[1741825020883,0.1197504,83522.0,83521.0,3e-08]
[1741825021191,0.2261504,83522.0,83521.0,3e-08]
[1741825021376,0.1064,83522.0,83510.0,0.24844319]
[1741825021691,0.0618754,83522.0,83516.0,0.1197586]
[1741825021890,0.1197576,83518.0,83517.0,0.2199524]
[1741825022093,0.1197576,83518.0,83517.0,0.1002]
[1741825022491,0.002,83522.0,83517.0,0.22164]
[1741825022492,0.001,83522.0,83517.0,0.22164]
[1741825022791,0.0608755,83522.0,83521.0,0.1197519]
[1741825022979,0.0598668,83534.0,83521.0,0.1197519]
[1741825022980,0.19529119,83549.0,83521.0,0.6363]
[1741825023185,0.02604546,83530.0,83529.0,0.1197404]
[1741825023389,0.14578446,83530.0,83529.0,0.7474404]
[1741825023584,0.02604546,83530.0,83529.0,0.7474404]
[1741825024381,0.00404546,83530.0,83529.0,0.7474404]
[1741825024987,0.12378446,83530.0,83529.0,0.7474404]
[1741825025387,0.12378446,83530.0,83529.0,0.4574404]
[1741825025693,0.12378446,83530.0,83529.0,0.6974404]
[1741825025887,0.00404546,83530.0,83529.0,0.6974404]
[1741825026197,0.0598661,83535.0,83534.0,0.1795943]
[1741825026381,0.0598661,83535.0,83534.0,0.22242]
[1741825026896,0.0598661,83535.0,83534.0,0.1009]
[1741825027083,0.0598661,83535.0,83534.0,0.0521]
[1741825027884,0.0628661,83535.0,83534.0,0.0521]
[1741825028183,0.0628661,83535.0,83534.0,0.1718332]
[1741825028390,0.0688661,83535.0,83534.0,0.0521]
[1741825028789,0.0688661,83535.0,83534.0,0.1018]
[1741825028990,0.0628661,83535.0,83534.0,0.1018]
[1741825029195,0.0678661,83535.0,83534.0,0.1018]
[1741825029384,0.0648661,83535.0,83534.0,0.1018]
[1741825029589,0.0678661,83535.0,83534.0,0.2215332]
[1741825029784,0.008,83535.0,83534.0,0.2215332]
[1741825030089,0.008,83535.0,83534.0,0.4915332]
[1741825030393,0.008,83535.0,83534.0,0.5035484]
[1741825030593,0.003,83535.0,83534.0,0.5035484]
[1741825030795,0.00017951,83538.0,83537.0,0.1197289]
[1741825030997,0.11990701,83538.0,83537.0,0.1317441]
[1741825031198,0.00017951,83538.0,83537.0,0.1317441]
[1741825031396,0.00017951,83538.0,83537.0,0.1197289]
[1741825031700,0.00017951,83538.0,83537.0,0.13194558]
[1741825031895,0.12590701,83538.0,83537.0,0.13194558]
[1741825032291,0.17510701,83538.0,83537.0,0.13194558]
[1741825033193,0.17510701,83538.0,83537.0,0.01221668]
[1741825033194,0.17910701,83538.0,83537.0,0.01221668]
[1741825033597,0.17910701,83538.0,83537.0,0.13194558]
[1741825034093,0.05937951,83538.0,83537.0,0.13194558]
[1741825035289,0.17910701,83538.0,83537.0,0.13194558]
[1741825035599,0.23230701,83538.0,83537.0,0.13194558]
[1741825036894,0.06337951,83538.0,83537.0,0.13194558]
[1741825037087,0.01017951,83538.0,83537.0,0.13194558]
[1741825037284,0.01017951,83538.0,83537.0,0.25426558]
[1741825037486,0.01017951,83538.0,83537.0,0.48426558]
[1741825037698,0.00917951,83538.0,83537.0,0.25426558]
[1741825037894,0.00917951,83538.0,83537.0,0.53426558]
[1741825038199,0.12890701,83538.0,83537.0,0.25426558]
[1741825038390,0.12890701,83538.0,83537.0,0.26709554]
[1741825038586,0.00917951,83538.0,83537.0,0.26709554]
[1741825038791,0.00917951,83538.0,83537.0,0.52709554]
[1741825039094,0.00917951,83538.0,83537.0,0.51709554]
[1741825039284,0.00917951,83538.0,83537.0,0.51721465]
[1741825039889,0.00917951,83538.0,83537.0,0.50487886]
[1741825040094,0.00917951,83538.0,83537.0,0.51721661]
[1741825040289,0.00917951,83538.0,83537.0,0.73351661]
[1741825041205,0.00917951,83538.0,83537.0,0.73355662]
[1741825043903,0.0496,83549.0,83548.0,0.1197132]
[1741825044101,0.0496,83549.0,83548.0,0.25449096]
[1741825044696,0.0496,83549.0,83548.0,0.35659096]
[1741825044897,0.1693117,83549.0,83548.0,0.35659096]
[1741825045098,0.1693117,83549.0,83548.0,0.18767776]
[1741825045307,0.1763117,83549.0,83548.0,0.18767776]
[1741825045490,0.1763117,83549.0,83548.0,0.06527776]
[1741825045692,0.2260117,83549.0,83548.0,0.18767776]
[1741825046192,0.2260117,83549.0,83548.0,0.30739096]
[1741825046391,0.2260117,83549.0,83548.0,0.1753]
[1741825046593,0.2330117,83549.0,83548.0,0.1234]
[1741825046993,0.2330117,83549.0,83548.0,0.2431132]
[1741825047595,0.2330117,83549.0,83548.0,0.3487132]
[1741825047792,0.0636,83549.0,83548.0,0.3487132]